{"text_format":"1","workbook":"xlsx","n_sheets":1,"sheets":["Umfrage"],"not_rendered":{"charts":0,"images":4,"macros":1,"external_links":0,"defined_names":1,"comments":0,"pivot_tables":0},"unopened":[],"bounds":{"document_bytes":16777216,"sheet_cells":100000,"rows_first":2000,"rows_last":500,"rows_between":2000,"halvings":0,"cell_chars":16384,"cell_head_chars":4096},"cells_cut":0,"cells_raw":0,"read":"whole","date_system":"1900"}

{"sheet":"Umfrage","index":0,"n_rows":51,"n_cols":41,"rows_kept":51,"cut":false,"hidden":false,"merged":[[9,40,10,40],[8,37,8,40]]}
[null,"Schülerumfrage"]
[]
[]
[null,"Diese Umfrage bezieht sich auf den Unterricht bei …  in der Klasse …"]
[]
[null,"im Fach / in den Fächern:"]
[]
[]
[null,"Geben Sie bitte einen Wert zwischen 1 und 4 ein.\n                                                           ",null,null,null,null,null,null,null,null,null,null,null,null,null,null,null,null,null,null,null,null,null,null,null,null,null,null,null,null,null,null,null,null,null,null,null,"Ergebnisse"]
[null,"Schüler/Schülerin",1,2,3,4,5,6,7,8,9,10,11,12,13,14,15,16,17,18,19,20,21,22,23,24,25,26,27,28,29,30,31,32,33,34,35,null,null,null,"Standard-abweichung"]
[null,"Eingabe ist erfolgt = rot",null,null,null,null,null,null,null,null,null,null,null,null,null,null,null,null,null,null,null,null,null,null,null,null,null,null,null,null,null,null,null,null,null,null,null,"Mittelwert","Min.-wert","Max.-wert"]
["1.",null,null,null,null,null,null,null,null,null,null,null,null,null,null,null,null,null,null,null,null,null,null,null,null,null,null,null,null,null,null,null,null,null,null,null,null,{"$f":"IF(ISERROR(AVERAGE(C12:AK12)),\"\",(AVERAGE(C12:AK12)))","v":""},{"$f":"MIN(C12:AK12)","v":0},{"$f":"MAX(C12:AK12)","v":0},{"$f":"IF(ISERROR(STDEVA(C12:AK12)),\"\",(STDEVA(C12:AK12)))","v":""}]
["2.",null,null,null,null,null,null,null,null,null,null,null,null,null,null,null,null,null,null,null,null,null,null,null,null,null,null,null,null,null,null,null,null,null,null,null,null,{"$f":"IF(ISERROR(AVERAGE(C13:AK13)),\"\",(AVERAGE(C13:AK13)))","v":""},{"$f":"MIN(C13:AK13)","v":0},{"$f":"MAX(C13:AK13)","v":0},{"$f":"IF(ISERROR(STDEVA(C13:AK13)),\"\",(STDEVA(C13:AK13)))","v":""}]
["3.",null,null,null,null,null,null,null,null,null,null,null,null,null,null,null,null,null,null,null,null,null,null,null,null,null,null,null,null,null,null,null,null,null,null,null,null,"",0,0,""]
["4.",null,null,null,null,null,null,null,null,null,null,null,null,null,null,null,null,null,null,null,null,null,null,null,null,null,null,null,null,null,null,null,null,null,null,null,null,"",0,0,""]
["5.",null,null,null,null,null,null,null,null,null,null,null,null,null,null,null,null,null,null,null,null,null,null,null,null,null,null,null,null,null,null,null,null,null,null,null,null,"",0,0,""]
["6.",null,null,null,null,null,null,null,null,null,null,null,null,null,null,null,null,null,null,null,null,null,null,null,null,null,null,null,null,null,null,null,null,null,null,null,null,"",0,0,""]
["7.",null,null,null,null,null,null,null,null,null,null,null,null,null,null,null,null,null,null,null,null,null,null,null,null,null,null,null,null,null,null,null,null,null,null,null,null,"",0,0,""]
["8.",null,null,null,null,null,null,null,null,null,null,null,null,null,null,null,null,null,null,null,null,null,null,null,null,null,null,null,null,null,null,null,null,null,null,null,null,"",0,0,""]
["9.",null,null,null,null,null,null,null,null,null,null,null,null,null,null,null,null,null,null,null,null,null,null,null,null,null,null,null,null,null,null,null,null,null,null,null,null,{"$f":"IF(ISERROR(AVERAGE(C20:AK20)),\"\",(AVERAGE(C20:AK20)))","v":""},0,0,""]
["10.",null,null,null,null,null,null,null,null,null,null,null,null,null,null,null,null,null,null,null,null,null,null,null,null,null,null,null,null,null,null,null,null,null,null,null,null,"",0,0,""]
["11.",null,null,null,null,null,null,null,null,null,null,null,null,null,null,null,null,null,null,null,null,null,null,null,null,null,null,null,null,null,null,null,null,null,null,null,null,"",0,0,""]
["12.",null,null,null,null,null,null,null,null,null,null,null,null,null,null,null,null,null,null,null,null,null,null,null,null,null,null,null,null,null,null,null,null,null,null,null,null,"",0,0,""]
["13.",null,null,null,null,null,null,null,null,null,null,null,null,null,null,null,null,null,null,null,null,null,null,null,null,null,null,null,null,null,null,null,null,null,null,null,null,"",0,0,""]
["14.",null,null,null,null,null,null,null,null,null,null,null,null,null,null,null,null,null,null,null,null,null,null,null,null,null,null,null,null,null,null,null,null,null,null,null,null,"",0,0,""]
["15.",null,null,null,null,null,null,null,null,null,null,null,null,null,null,null,null,null,null,null,null,null,null,null,null,null,null,null,null,null,null,null,null,null,null,null,null,"",0,0,""]
["16.",null,null,null,null,null,null,null,null,null,null,null,null,null,null,null,null,null,null,null,null,null,null,null,null,null,null,null,null,null,null,null,null,null,null,null,null,"",0,0,""]
["17.",null,null,null,null,null,null,null,null,null,null,null,null,null,null,null,null,null,null,null,null,null,null,null,null,null,null,null,null,null,null,null,null,null,null,null,null,"",0,0,""]
["18.",null,null,null,null,null,null,null,null,null,null,null,null,null,null,null,null,null,null,null,null,null,null,null,null,null,null,null,null,null,null,null,null,null,null,null,null,"",0,0,""]
["19.",null,null,null,null,null,null,null,null,null,null,null,null,null,null,null,null,null,null,null,null,null,null,null,null,null,null,null,null,null,null,null,null,null,null,null,null,"",0,0,""]
["20.",null,null,null,null,null,null,null,null,null,null,null,null,null,null,null,null,null,null,null,null,null,null,null,null,null,null,null,null,null,null,null,null,null,null,null,null,"",0,0,""]
[]
[null,"Wenn Sie die Eingabe beendet haben, klicken Sie bitte auf den Button \"Ende\" in Ihrer Spalte."]
[null,null,null,null,{"$f":"IF(E33=1,\"ok\",\"\")","v":""},"","","","","","","","","","","","","","","","","","","","","","","","","","","","","","","",""]
[]
[]
[]
[]
[]
[]
[]
[]
[]
[]
[]
[]
[]
[]
[]
[]
[null,"Diese Schaltflächen sollte nur die Lehrkraft betätigen."]